[Event "Titled Tuesday Blitz January 31 Early 2023"]
[White "Manukyan, Artyom"]
[Black "Osiecki, Stanislaw"]
[WhiteFideId "13305786"]
[BlackFideId "1102990"]
[WhiteElo "2110"]
[BlackElo "2055"]
[Result "1-0"]
[Round "07"]
[TimeControl "180+2"]
[Date "2023.01.31"]
[WhiteClock "0:00:24"]
[BlackClock "0:00:13"]

1. e4 {[%clk 0:02:56]}  e6 {[%clk 0:03:00]} 2. d4 {[%clk 0:02:56]}  d5 {[%clk 0:03:00]} 3. Bd3 {[%clk 0:02:57]}  dxe4 {[%clk 0:03:00]} 4. Bxe4 {[%clk 0:02:58]}  c5 {[%clk 0:03:00]} 5. Ne2 {[%clk 0:02:57]}  Nc6 {[%clk 0:03:00]} 6. Be3 {[%clk 0:02:57]}  Qb6 {[%clk 0:03:00]} 7. Nbc3 {[%clk 0:02:55]}  Nf6 {[%clk 0:02:55]} 8. Bf3 {[%clk 0:02:56]}  Be7 {[%clk 0:02:51]} 9. O-O {[%clk 0:02:55]}  O-O {[%clk 0:02:50]} 10. dxc5 {[%clk 0:02:55]}  Qc7 {[%clk 0:02:46]} 11. a3 {[%clk 0:02:53]}  a6 {[%clk 0:02:46]} 12. b4 {[%clk 0:02:53]}  e5 {[%clk 0:02:45]} 13. Ng3 {[%clk 0:02:47]}  Rd8 {[%clk 0:02:45]} 14. Qe2 {[%clk 0:02:47]}  a5 {[%clk 0:02:37]} 15. Nb5 {[%clk 0:02:44]}  Qb8 {[%clk 0:02:36]} 16. c3 {[%clk 0:02:44]}  axb4 {[%clk 0:02:35]} 17. axb4 {[%clk 0:02:41]}  Rxa1 {[%clk 0:02:30]} 18. Rxa1 {[%clk 0:02:42]}  Bd7 {[%clk 0:02:20]} 19. h3 {[%clk 0:02:37]}  h6 {[%clk 0:02:08]} 20. Ne4 {[%clk 0:02:36]}  Nxe4 {[%clk 0:02:08]} 21. Bxe4 {[%clk 0:02:37]}  f5 {[%clk 0:02:05]} 22. Bd5+ {[%clk 0:02:35]}  Kh8 {[%clk 0:02:03]} 23. Bb3 {[%clk 0:02:21]}  Bf6 {[%clk 0:01:54]} 24. Nd6 {[%clk 0:02:16]}  Be8 {[%clk 0:01:42]} 25. Nxf5 {[%clk 0:02:08]}  Bg6 {[%clk 0:01:30]} 26. Nd6 {[%clk 0:02:07]}  b6 {[%clk 0:01:27]} 27. Qg4 {[%clk 0:02:00]}  Kh7 {[%clk 0:01:24]} 28. Ne4 {[%clk 0:00:47]}  Be7 {[%clk 0:01:02]} 29. cxb6 {[%clk 0:00:42]}  Qb7 {[%clk 0:00:57]} 30. f3 {[%clk 0:00:36]}  Ra8 {[%clk 0:00:48]} 31. Rd1 {[%clk 0:00:34]}  Rd8 {[%clk 0:00:46]} 32. Ra1 {[%clk 0:00:33]}  Nb8 {[%clk 0:00:31]} 33. Be6 {[%clk 0:00:32]}  Bxe4 {[%clk 0:00:26]} 34. fxe4 {[%clk 0:00:32]}  Nc6 {[%clk 0:00:22]} 35. Bf5+ {[%clk 0:00:30]}  Kg8 {[%clk 0:00:22]} 36. Bxh6 {[%clk 0:00:30]}  Bf6 {[%clk 0:00:21]} 37. Be3 {[%clk 0:00:29]}  Ne7 {[%clk 0:00:19]} 38. Be6+ {[%clk 0:00:29]}  Kf8 {[%clk 0:00:19]} 39. Bc5 {[%clk 0:00:29]}  Ra8 {[%clk 0:00:16]} 40. Rxa8+ {[%clk 0:00:28]}  Qxa8 {[%clk 0:00:16]} 41. Kh2 {[%clk 0:00:28]}  Qb7 {[%clk 0:00:13]} 42. Qg6 {[%clk 0:00:24]} 1-0


[Site "https://www.chess.com"]

[Event "Titled Tuesday Blitz January 31 Early 2023"]
[White "Vetokhin, Ilia"]
[Black "Souleidis, Georgios"]
[WhiteFideId "24156078"]
[BlackFideId "4206827"]
[WhiteElo "2305"]
[BlackElo "2419"]
[Result "1/2-1/2"]
[Round "07"]
[TimeControl "180+2"]
[Date "2023.01.31"]
[WhiteClock "0:00:26"]
[BlackClock "0:00:13"]

1. b3 {[%clk 0:03:00]}  d5 {[%clk 0:02:59]} 2. Bb2 {[%clk 0:03:01]}  Bf5 {[%clk 0:03:00]} 3. Nf3 {[%clk 0:03:01]}  e6 {[%clk 0:03:00]} 4. g3 {[%clk 0:02:58]}  Nf6 {[%clk 0:03:00]} 5. Bg2 {[%clk 0:02:58]}  Nbd7 {[%clk 0:02:59]} 6. O-O {[%clk 0:02:59]}  Bd6 {[%clk 0:03:00]} 7. c4 {[%clk 0:02:54]}  c6 {[%clk 0:03:00]} 8. d3 {[%clk 0:02:55]}  O-O {[%clk 0:03:00]} 9. Nbd2 {[%clk 0:02:55]}  h6 {[%clk 0:02:59]} 10. a3 {[%clk 0:02:51]}  Bh7 {[%clk 0:02:59]} 11. Rc1 {[%clk 0:02:38]}  Qe7 {[%clk 0:02:59]} 12. b4 {[%clk 0:02:38]}  a5 {[%clk 0:02:57]} 13. c5 {[%clk 0:02:38]}  Bc7 {[%clk 0:02:57]} 14. Qc2 {[%clk 0:02:37]}  axb4 {[%clk 0:02:57]} 15. axb4 {[%clk 0:02:37]}  e5 {[%clk 0:02:55]} 16. e4 {[%clk 0:02:37]}  dxe4 {[%clk 0:02:49]} 17. dxe4 {[%clk 0:02:38]}  Rfd8 {[%clk 0:02:46]} 18. Rfd1 {[%clk 0:02:38]}  Nf8 {[%clk 0:02:45]} 19. Nh4 {[%clk 0:02:21]}  Ne6 {[%clk 0:02:36]} 20. Nf5 {[%clk 0:02:20]}  Bxf5 {[%clk 0:02:35]} 21. exf5 {[%clk 0:02:20]}  Nd4 {[%clk 0:02:36]} 22. Bxd4 {[%clk 0:01:45]}  exd4 {[%clk 0:02:37]} 23. Qd3 {[%clk 0:01:39]}  Ng4 {[%clk 0:01:59]} 24. Nc4 {[%clk 0:01:34]}  Ne5 {[%clk 0:01:50]} 25. Nxe5 {[%clk 0:01:32]}  Bxe5 {[%clk 0:01:50]} 26. Ra1 {[%clk 0:01:28]}  Bf6 {[%clk 0:01:46]} 27. h4 {[%clk 0:01:28]}  Qe5 {[%clk 0:01:40]} 28. Rdc1 {[%clk 0:01:06]}  Qe8 {[%clk 0:01:34]} 29. b5 {[%clk 0:01:04]}  Rxa1 {[%clk 0:01:15]} 30. Rxa1 {[%clk 0:01:05]}  Ra8 {[%clk 0:01:15]} 31. Rxa8 {[%clk 0:00:46]}  Qxa8 {[%clk 0:01:16]} 32. bxc6 {[%clk 0:00:47]}  bxc6 {[%clk 0:01:16]} 33. Qe4 {[%clk 0:00:48]}  Qa5 {[%clk 0:01:05]} 34. Qc2 {[%clk 0:00:08]}  Qe1+ {[%clk 0:00:51]} 35. Bf1 {[%clk 0:00:05]}  Qe5 {[%clk 0:00:32]} 36. Kg2 {[%clk 0:00:05]}  Be7 {[%clk 0:00:29]} 37. Bd3 {[%clk 0:00:02]}  Bxc5 {[%clk 0:00:25]} 38. Be4 {[%clk 0:00:03]}  Qd6 {[%clk 0:00:21]} 39. g4 {[%clk 0:00:03]}  Qf4 {[%clk 0:00:14]} 40. Bf3 {[%clk 0:00:03]}  Bd6 {[%clk 0:00:13]} 41. Qxc6 {[%clk 0:00:02]}  d3 {[%clk 0:00:13]} 42. Qd5 {[%clk 0:00:01]}  d2 {[%clk 0:00:12]} 43. Qd3 {[%clk 0:00:01]}  Qh2+ {[%clk 0:00:11]} 44. Kf1 {[%clk 0:00:02]}  Bf4 {[%clk 0:00:10]} 45. Ke2 {[%clk 0:00:02]}  Qxh4 {[%clk 0:00:09]} 46. f6 {[%clk 0:00:03]}  Qxf6 {[%clk 0:00:09]} 47. Qe4 {[%clk 0:00:02]}  g6 {[%clk 0:00:06]} 48. Qd3 {[%clk 0:00:03]}  Kg7 {[%clk 0:00:06]} 49. Be4 {[%clk 0:00:03]}  Qe5 {[%clk 0:00:06]} 50. Kf1 {[%clk 0:00:03]}  Bg5 {[%clk 0:00:07]} 51. Kg2 {[%clk 0:00:03]}  Qf4 {[%clk 0:00:06]} 52. Bf3 {[%clk 0:00:03]}  Bf6 {[%clk 0:00:07]} 53. Kf1 {[%clk 0:00:03]}  Qh2 {[%clk 0:00:06]} 54. Ke2 {[%clk 0:00:04]}  Qf4 {[%clk 0:00:05]} 55. Qxd2 {[%clk 0:00:04]}  Qc4+ {[%clk 0:00:05]} 56. Qd3 {[%clk 0:00:04]}  Qc5 {[%clk 0:00:06]} 57. Kf1 {[%clk 0:00:05]}  Bd4 {[%clk 0:00:06]} 58. Qe2 {[%clk 0:00:06]}  Qc1+ {[%clk 0:00:06]} 59. Kg2 {[%clk 0:00:06]}  Qf4 {[%clk 0:00:06]} 60. Qe4 {[%clk 0:00:07]}  Qd6 {[%clk 0:00:06]} 61. Qd3 {[%clk 0:00:07]}  Qe5 {[%clk 0:00:06]} 62. Qe4 {[%clk 0:00:07]}  Qf6 {[%clk 0:00:07]} 63. Qd3 {[%clk 0:00:07]}  Be5 {[%clk 0:00:07]} 64. Qe4 {[%clk 0:00:08]}  Bc7 {[%clk 0:00:08]} 65. Qd5 {[%clk 0:00:08]}  Qf4 {[%clk 0:00:08]} 66. Kf1 {[%clk 0:00:09]}  Be5 {[%clk 0:00:06]} 67. Qe4 {[%clk 0:00:09]}  Qc1+ {[%clk 0:00:06]} 68. Kg2 {[%clk 0:00:09]}  Qc7 {[%clk 0:00:06]} 69. Qd5 {[%clk 0:00:10]}  Qe7 {[%clk 0:00:06]} 70. Qe4 {[%clk 0:00:11]}  Qg5 {[%clk 0:00:06]} 71. Kf1 {[%clk 0:00:11]}  Bf6 {[%clk 0:00:06]} 72. Ke2 {[%clk 0:00:11]}  Qb5+ {[%clk 0:00:06]} 73. Ke1 {[%clk 0:00:11]}  Qb2 {[%clk 0:00:07]} 74. Qe2 {[%clk 0:00:10]}  Qc1+ {[%clk 0:00:07]} 75. Qd1 {[%clk 0:00:10]}  Bc3+ {[%clk 0:00:07]} 76. Ke2 {[%clk 0:00:10]}  Qb2+ {[%clk 0:00:06]} 77. Kf1 {[%clk 0:00:11]}  Bd4 {[%clk 0:00:06]} 78. Qe2 {[%clk 0:00:11]}  Qc1+ {[%clk 0:00:06]} 79. Kg2 {[%clk 0:00:12]}  Qf4 {[%clk 0:00:06]} 80. Qe4 {[%clk 0:00:12]}  Qf6 {[%clk 0:00:07]} 81. Qd5 {[%clk 0:00:12]}  Be5 {[%clk 0:00:07]} 82. Qe4 {[%clk 0:00:13]}  Qd6 {[%clk 0:00:07]} 83. Kf1 {[%clk 0:00:13]}  Qe7 {[%clk 0:00:07]} 84. Kg2 {[%clk 0:00:14]}  Qe6 {[%clk 0:00:08]} 85. Kf1 {[%clk 0:00:14]}  f5 {[%clk 0:00:08]} 86. gxf5 {[%clk 0:00:14]}  gxf5 {[%clk 0:00:09]} 87. Qb7+ {[%clk 0:00:15]}  Kf6 {[%clk 0:00:08]} 88. Qc6 {[%clk 0:00:15]}  Qxc6 {[%clk 0:00:08]} 89. Bxc6 {[%clk 0:00:16]}  Kg5 {[%clk 0:00:09]} 90. Kg2 {[%clk 0:00:17]}  h5 {[%clk 0:00:09]} 91. f3 {[%clk 0:00:17]}  Bf4 {[%clk 0:00:09]} 92. Kh3 {[%clk 0:00:18]}  Bd2 {[%clk 0:00:08]} 93. Ba8 {[%clk 0:00:19]}  Be1 {[%clk 0:00:09]} 94. Bb7 {[%clk 0:00:20]}  Kf4 {[%clk 0:00:09]} 95. Ba8 {[%clk 0:00:21]}  h4 {[%clk 0:00:09]} 96. Bb7 {[%clk 0:00:21]}  Bg3 {[%clk 0:00:10]} 97. Ba8 {[%clk 0:00:22]}  Ke3 {[%clk 0:00:10]} 98. Bb7 {[%clk 0:00:23]}  Kd4 {[%clk 0:00:10]} 99. Ba8 {[%clk 0:00:24]}  Ke3 {[%clk 0:00:11]} 100. Bb7 {[%clk 0:00:25]}  Kf4 {[%clk 0:00:11]} 101. Ba8 {[%clk 0:00:26]}  Kg5 {[%clk 0:00:12]} 102. Bb7 {[%clk 0:00:26]}  Kf4 {[%clk 0:00:13]} 1/2-1/2


[Site "https://www.chess.com"]

[Event "Titled Tuesday Blitz January 31 Early 2023"]
[White "Fiorito, Joaquin"]
[Black "Gatterer, Florian"]
[WhiteFideId "180173"]
[BlackFideId "811688"]
[WhiteElo "2405"]
[BlackElo "2170"]
[Result "1-0"]
[Round "07"]
[TimeControl "180+2"]
[Date "2023.01.31"]
[WhiteClock "0:01:32"]
[BlackClock "0:00:48"]

1. d4 {[%clk 0:03:00]}  Nf6 {[%clk 0:02:59]} 2. Nc3 {[%clk 0:03:00]}  d5 {[%clk 0:02:58]} 3. Bf4 {[%clk 0:03:01]}  c5 {[%clk 0:02:45]} 4. e4 {[%clk 0:03:00]}  Nxe4 {[%clk 0:02:42]} 5. Bb5+ {[%clk 0:02:59]}  Bd7 {[%clk 0:02:35]} 6. Nxd5 {[%clk 0:02:59]}  Nd6 {[%clk 0:02:18]} 7. Bxd6 {[%clk 0:02:21]}  exd6 {[%clk 0:02:11]} 8. Qe2+ {[%clk 0:02:21]}  Be7 {[%clk 0:02:11]} 9. Bxd7+ {[%clk 0:02:22]}  Qxd7 {[%clk 0:02:07]} 10. O-O-O {[%clk 0:02:22]}  cxd4 {[%clk 0:02:07]} 11. Nf3 {[%clk 0:02:21]}  Nc6 {[%clk 0:01:56]} 12. Rhe1 {[%clk 0:02:21]}  Kf8 {[%clk 0:01:55]} 13. Nxd4 {[%clk 0:02:16]}  Bd8 {[%clk 0:01:33]} 14. Kb1 {[%clk 0:02:00]}  Bb6 {[%clk 0:01:27]} 15. Nb5 {[%clk 0:01:45]}  Ne5 {[%clk 0:00:55]} 16. Nxb6 {[%clk 0:01:42]}  axb6 {[%clk 0:00:48]} 17. Rxd6 {[%clk 0:01:32]} 1-0


[Site "https://www.chess.com"]

[Event "Titled Tuesday Blitz January 31 Early 2023"]
[White "Elgersma, Onno"]
[Black "Heinemann, Josefine"]
[WhiteFideId "1053531"]
[BlackFideId "12900460"]
[WhiteElo "2276"]
[BlackElo "2289"]
[Result "1-0"]
[Round "07"]
[TimeControl "180+2"]
[Date "2023.01.31"]
[WhiteClock "0:00:08"]
[BlackClock "0:00:09"]

1. Nf3 {[%clk 0:02:58]}  d5 {[%clk 0:02:58]} 2. e3 {[%clk 0:02:55]}  Nf6 {[%clk 0:02:56]} 3. b3 {[%clk 0:02:55]}  c5 {[%clk 0:02:55]} 4. Bb2 {[%clk 0:02:56]}  Nc6 {[%clk 0:02:55]} 5. Bb5 {[%clk 0:02:43]}  e6 {[%clk 0:02:52]} 6. O-O {[%clk 0:02:43]}  Bd6 {[%clk 0:02:52]} 7. Ne5 {[%clk 0:02:42]}  Bd7 {[%clk 0:02:50]} 8. Bxc6 {[%clk 0:02:36]}  Bxc6 {[%clk 0:02:49]} 9. d3 {[%clk 0:02:30]}  Qc7 {[%clk 0:02:43]} 10. f4 {[%clk 0:02:23]}  O-O-O {[%clk 0:02:35]} 11. Nd2 {[%clk 0:02:16]}  Rhg8 {[%clk 0:02:23]} 12. Nxc6 {[%clk 0:02:02]}  Qxc6 {[%clk 0:02:16]} 13. Qf3 {[%clk 0:02:02]}  Qc7 {[%clk 0:02:11]} 14. c4 {[%clk 0:01:56]}  Qe7 {[%clk 0:02:08]} 15. Rac1 {[%clk 0:01:51]}  h5 {[%clk 0:01:58]} 16. h3 {[%clk 0:01:45]}  h4 {[%clk 0:01:57]} 17. Nb1 {[%clk 0:01:21]}  Kb8 {[%clk 0:01:56]} 18. Nc3 {[%clk 0:01:20]}  dxc4 {[%clk 0:01:55]} 19. bxc4 {[%clk 0:01:20]}  Bc7 {[%clk 0:01:46]} 20. Rcd1 {[%clk 0:00:55]}  g6 {[%clk 0:01:45]} 21. Nb5 {[%clk 0:00:54]}  Nh5 {[%clk 0:01:34]} 22. Nxc7 {[%clk 0:00:52]}  Kxc7 {[%clk 0:01:34]} 23. d4 {[%clk 0:00:45]}  Ng3 {[%clk 0:01:32]} 24. Rfe1 {[%clk 0:00:44]}  Rd7 {[%clk 0:01:26]} 25. d5 {[%clk 0:00:43]}  Kc8 {[%clk 0:01:13]} 26. e4 {[%clk 0:00:42]}  Rgd8 {[%clk 0:01:11]} 27. a4 {[%clk 0:00:36]}  f6 {[%clk 0:01:02]} 28. a5 {[%clk 0:00:34]}  e5 {[%clk 0:01:01]} 29. fxe5 {[%clk 0:00:31]}  fxe5 {[%clk 0:01:02]} 30. Qg4 {[%clk 0:00:31]}  Kb8 {[%clk 0:00:53]} 31. Bc1 {[%clk 0:00:24]}  Qf7 {[%clk 0:00:45]} 32. Be3 {[%clk 0:00:23]}  Rc8 {[%clk 0:00:31]} 33. Rb1 {[%clk 0:00:22]}  Rdd8 {[%clk 0:00:18]} 34. Qg5 {[%clk 0:00:18]}  Rf8 {[%clk 0:00:16]} 35. Qxe5+ {[%clk 0:00:18]}  Ka8 {[%clk 0:00:17]} 36. a6 {[%clk 0:00:11]}  b6 {[%clk 0:00:16]} 37. d6 {[%clk 0:00:10]}  Rce8 {[%clk 0:00:15]} 38. Qd5+ {[%clk 0:00:08]}  Qxd5 {[%clk 0:00:16]} 39. exd5 {[%clk 0:00:09]}  Rd8 {[%clk 0:00:15]} 40. Bg5 {[%clk 0:00:07]}  Rxd6 {[%clk 0:00:08]} 41. Be7 {[%clk 0:00:07]}  Rdd8 {[%clk 0:00:09]} 42. Bxf8 {[%clk 0:00:07]}  Rxf8 {[%clk 0:00:08]} 43. d6 {[%clk 0:00:07]}  Kb8 {[%clk 0:00:09]} 44. d7 {[%clk 0:00:08]}  Kc7 {[%clk 0:00:09]} 45. Re8 {[%clk 0:00:08]} 1-0


[Site "https://www.chess.com"]

[Event "Titled Tuesday Blitz January 31 Early 2023"]
[White "Buscar, Michael"]
[Black "Ristic, Nebojsa B"]
[WhiteFideId "2603616"]
[BlackFideId "935468"]
[WhiteElo "2041"]
[BlackElo "2236"]
[Result "0-1"]
[Round "07"]
[TimeControl "180+2"]
[Date "2023.01.31"]
[WhiteClock "0:00:18"]
[BlackClock "0:00:35"]

1. e4 {[%clk 0:02:59]}  Nc6 {[%clk 0:02:59]} 2. Nf3 {[%clk 0:02:58]}  d6 {[%clk 0:02:59]} 3. d4 {[%clk 0:02:56]}  Nf6 {[%clk 0:02:56]} 4. Nbd2 {[%clk 0:02:51]}  g6 {[%clk 0:02:55]} 5. c3 {[%clk 0:02:51]}  Bg7 {[%clk 0:02:53]} 6. Bd3 {[%clk 0:02:50]}  e5 {[%clk 0:02:50]} 7. O-O {[%clk 0:02:45]}  O-O {[%clk 0:02:45]} 8. h3 {[%clk 0:02:35]}  Nh5 {[%clk 0:02:39]} 9. Re1 {[%clk 0:02:34]}  Nf4 {[%clk 0:02:37]} 10. Bb5 {[%clk 0:02:29]}  exd4 {[%clk 0:02:35]} 11. Bxc6 {[%clk 0:02:30]}  dxc3 {[%clk 0:02:31]} 12. Bxb7 {[%clk 0:02:29]}  cxd2 {[%clk 0:02:29]} 13. Bxd2 {[%clk 0:02:30]}  Bxb7 {[%clk 0:02:26]} 14. Bxf4 {[%clk 0:02:30]}  Rb8 {[%clk 0:02:13]} 15. Qc2 {[%clk 0:02:26]}  Qf6 {[%clk 0:02:08]} 16. Bc1 {[%clk 0:02:03]}  c5 {[%clk 0:02:02]} 17. Rb1 {[%clk 0:02:02]}  Rfe8 {[%clk 0:01:54]} 18. Bd2 {[%clk 0:01:47]}  Qe6 {[%clk 0:01:51]} 19. Qa4 {[%clk 0:01:27]}  h6 {[%clk 0:01:40]} 20. Bc3 {[%clk 0:00:53]}  a6 {[%clk 0:01:09]} 21. Bxg7 {[%clk 0:00:49]}  Kxg7 {[%clk 0:01:10]} 22. Nd2 {[%clk 0:00:42]}  Qf6 {[%clk 0:01:04]} 23. Qc4 {[%clk 0:00:35]}  Re7 {[%clk 0:00:59]} 24. f3 {[%clk 0:00:30]}  Bc8 {[%clk 0:00:59]} 25. b3 {[%clk 0:00:27]}  Rb4 {[%clk 0:00:56]} 26. Qc2 {[%clk 0:00:21]}  Qg5 {[%clk 0:00:49]} 27. Nc4 {[%clk 0:00:19]}  Bxh3 {[%clk 0:00:42]} 28. Nxd6 {[%clk 0:00:19]}  Rd4 {[%clk 0:00:41]} 29. Nc4 {[%clk 0:00:19]}  Red7 {[%clk 0:00:39]} 30. Kh2 {[%clk 0:00:18]}  Rd2 {[%clk 0:00:39]} 31. Qc3+ {[%clk 0:00:17]}  Kh7 {[%clk 0:00:38]} 32. Kxh3 {[%clk 0:00:17]}  Qxg2+ {[%clk 0:00:36]} 33. Kh4 {[%clk 0:00:17]}  g5+ {[%clk 0:00:35]} 34. Kh5 {[%clk 0:00:18]}  Qh3# {[%clk 0:00:35]} 0-1


[Site "https://www.chess.com"]

[Event "Titled Tuesday Blitz January 31 Early 2023"]
[White "Mrudul Dehankar"]
[Black "Gurevich, Dmitry"]
[WhiteFideId "25096990"]
[BlackFideId "2000407"]
[WhiteElo "2030"]
[BlackElo "2393"]
[Result "0-1"]
[Round "07"]
[TimeControl "180+2"]
[Date "2023.01.31"]
[WhiteClock "0:00:03"]
[BlackClock "0:00:44"]

1. e4 {[%clk 0:03:00]}  c5 {[%clk 0:02:59]} 2. Nf3 {[%clk 0:02:59]}  d6 {[%clk 0:02:58]} 3. d4 {[%clk 0:02:58]}  cxd4 {[%clk 0:02:58]} 4. Nxd4 {[%clk 0:02:59]}  Nf6 {[%clk 0:02:58]} 5. Nc3 {[%clk 0:02:58]}  Nc6 {[%clk 0:02:58]} 6. Bg5 {[%clk 0:02:56]}  g6 {[%clk 0:02:58]} 7. Bxf6 {[%clk 0:02:51]}  exf6 {[%clk 0:02:58]} 8. Qd2 {[%clk 0:02:50]}  Bg7 {[%clk 0:02:57]} 9. O-O-O {[%clk 0:02:50]}  O-O {[%clk 0:02:54]} 10. Ndb5 {[%clk 0:02:49]}  f5 {[%clk 0:02:52]} 11. exf5 {[%clk 0:02:41]}  Bxf5 {[%clk 0:02:50]} 12. Nxd6 {[%clk 0:02:40]}  Be6 {[%clk 0:02:42]} 13. Bc4 {[%clk 0:02:24]}  Nd4 {[%clk 0:02:37]} 14. Bxe6 {[%clk 0:02:18]}  Qxd6 {[%clk 0:02:36]} 15. Bb3 {[%clk 0:02:15]}  Nxb3+ {[%clk 0:02:26]} 16. axb3 {[%clk 0:02:09]}  Qf6 {[%clk 0:02:26]} 17. Kb1 {[%clk 0:02:02]}  b5 {[%clk 0:02:25]} 18. g4 {[%clk 0:01:57]}  Rfc8 {[%clk 0:02:09]} 19. g5 {[%clk 0:01:49]}  Qf5 {[%clk 0:02:04]} 20. Nd5 {[%clk 0:01:43]}  Bf8 {[%clk 0:01:46]} 21. h4 {[%clk 0:01:29]}  Rc5 {[%clk 0:01:21]} 22. h5 {[%clk 0:01:12]}  Rac8 {[%clk 0:01:18]} 23. Nf6+ {[%clk 0:01:04]}  Kg7 {[%clk 0:01:11]} 24. hxg6 {[%clk 0:00:05]}  Rxc2 {[%clk 0:01:07]} 25. Nh5+ {[%clk 0:00:04]}  Kxg6 {[%clk 0:00:56]} 26. Nf4+ {[%clk 0:00:04]}  Kg7 {[%clk 0:00:52]} 27. Qd4+ {[%clk 0:00:04]}  Kg8 {[%clk 0:00:48]} 28. Nd3 {[%clk 0:00:03]}  Bg7 {[%clk 0:00:44]} 0-1


[Site "https://www.chess.com"]

[Event "Titled Tuesday Blitz January 31 Early 2023"]
[White "Toncheva, Nadya"]
[Black "Orujov, Elshad"]
[WhiteFideId "2924056"]
[BlackFideId "13403540"]
[WhiteElo "2295"]
[BlackElo "2304"]
[Result "1-0"]
[Round "07"]
[TimeControl "180+2"]
[Date "2023.01.31"]
[WhiteClock "0:00:03"]
[BlackClock "0:00:01"]

1. e4 {[%clk 0:03:00]}  c5 {[%clk 0:02:59]} 2. Nf3 {[%clk 0:02:59]}  d6 {[%clk 0:03:00]} 3. d4 {[%clk 0:02:59]}  cxd4 {[%clk 0:03:00]} 4. Nxd4 {[%clk 0:03:00]}  Nf6 {[%clk 0:03:01]} 5. Nc3 {[%clk 0:03:00]}  a6 {[%clk 0:03:02]} 6. Be3 {[%clk 0:02:57]}  e5 {[%clk 0:03:02]} 7. Nf3 {[%clk 0:02:57]}  Be7 {[%clk 0:03:01]} 8. Bc4 {[%clk 0:02:57]}  Be6 {[%clk 0:03:00]} 9. Bb3 {[%clk 0:02:56]}  O-O {[%clk 0:03:00]} 10. O-O {[%clk 0:02:56]}  Nc6 {[%clk 0:02:59]} 11. Qe2 {[%clk 0:02:46]}  h6 {[%clk 0:02:57]} 12. Rfd1 {[%clk 0:02:44]}  Qc7 {[%clk 0:02:54]} 13. Ne1 {[%clk 0:02:27]}  b5 {[%clk 0:02:52]} 14. f3 {[%clk 0:02:23]}  Rfd8 {[%clk 0:02:46]} 15. Nd5 {[%clk 0:02:23]}  Qb7 {[%clk 0:02:32]} 16. a4 {[%clk 0:01:59]}  b4 {[%clk 0:02:20]} 17. a5 {[%clk 0:01:59]}  Bf8 {[%clk 0:02:11]} 18. Nxf6+ {[%clk 0:01:46]}  gxf6 {[%clk 0:02:09]} 19. Bd5 {[%clk 0:01:46]}  f5 {[%clk 0:02:04]} 20. exf5 {[%clk 0:01:36]}  Bxf5 {[%clk 0:01:57]} 21. f4 {[%clk 0:01:29]}  Bg7 {[%clk 0:01:50]} 22. g4 {[%clk 0:01:14]}  Be6 {[%clk 0:01:45]} 23. Qf3 {[%clk 0:01:01]}  Bxd5 {[%clk 0:01:39]} 24. Qxd5 {[%clk 0:01:02]}  exf4 {[%clk 0:01:32]} 25. Bxf4 {[%clk 0:01:01]}  Qa7+ {[%clk 0:01:31]} 26. Kh1 {[%clk 0:01:00]}  Rac8 {[%clk 0:01:22]} 27. Ng2 {[%clk 0:00:42]}  Ne5 {[%clk 0:01:04]} 28. Be3 {[%clk 0:00:29]}  Qd7 {[%clk 0:00:53]} 29. g5 {[%clk 0:00:26]}  h5 {[%clk 0:00:44]} 30. Qe4 {[%clk 0:00:25]}  Qh3 {[%clk 0:00:39]} 31. Rf1 {[%clk 0:00:21]}  Ng4 {[%clk 0:00:32]} 32. Bg1 {[%clk 0:00:21]}  Be5 {[%clk 0:00:25]} 33. Rf3 {[%clk 0:00:16]}  Rc4 {[%clk 0:00:15]} 34. Qb7 {[%clk 0:00:07]}  Nf2+ {[%clk 0:00:05]} 35. Rxf2 {[%clk 0:00:06]}  Qg4 {[%clk 0:00:01]} 36. Qf3 {[%clk 0:00:06]}  Qe6 {[%clk 0:00:01]} 37. Qf5 {[%clk 0:00:05]}  Qd5 {[%clk 0:00:01]} 38. g6 {[%clk 0:00:05]}  Rg4 {[%clk 0:00:01]} 39. gxf7+ {[%clk 0:00:05]}  Kf8 {[%clk 0:00:01]} 40. Raf1 {[%clk 0:00:03]}  Qc6 {[%clk 0:00:01]} 41. Qe6 {[%clk 0:00:03]} 1-0


[Site "https://www.chess.com"]

[Event "Titled Tuesday Blitz January 31 Early 2023"]
[White "Koepke, Christian"]
[Black "Liu, Casper"]
[WhiteFideId "4655737"]
[BlackFideId "1454153"]
[WhiteElo "2308"]
[BlackElo "2278"]
[Result "1-0"]
[Round "07"]
[TimeControl "180+2"]
[Date "2023.01.31"]
[WhiteClock "0:01:10"]
[BlackClock "0:02:32"]

1. d4 {[%clk 0:03:00]}  Nf6 {[%clk 0:02:58]} 2. e3 {[%clk 0:02:59]}  g6 {[%clk 0:02:59]} 3. Nf3 {[%clk 0:02:59]}  Bg7 {[%clk 0:02:59]} 4. Be2 {[%clk 0:02:59]}  O-O {[%clk 0:03:00]} 5. O-O {[%clk 0:03:00]}  b6 {[%clk 0:02:59]} 6. c4 {[%clk 0:02:58]}  Bb7 {[%clk 0:03:00]} 7. Nc3 {[%clk 0:02:51]}  c5 {[%clk 0:02:59]} 8. d5 {[%clk 0:02:49]}  e6 {[%clk 0:02:59]} 9. e4 {[%clk 0:02:49]}  exd5 {[%clk 0:02:59]} 10. exd5 {[%clk 0:02:50]}  Re8 {[%clk 0:03:00]} 11. Bf4 {[%clk 0:02:44]}  d6 {[%clk 0:03:00]} 12. h3 {[%clk 0:02:40]}  Ne4 {[%clk 0:02:59]} 13. Nxe4 {[%clk 0:02:27]}  Rxe4 {[%clk 0:03:00]} 14. Bg5 {[%clk 0:02:21]}  Qe8 {[%clk 0:02:58]} 15. Bd3 {[%clk 0:02:19]}  f5 {[%clk 0:02:58]} 16. Bxe4 {[%clk 0:02:13]}  fxe4 {[%clk 0:02:59]} 17. Nd2 {[%clk 0:02:11]}  Bxb2 {[%clk 0:02:56]} 18. Re1 {[%clk 0:02:11]}  Bxa1 {[%clk 0:02:53]} 19. Qxa1 {[%clk 0:02:09]}  Qe5 {[%clk 0:02:54]} 20. Nxe4 {[%clk 0:01:22]}  Qxa1 {[%clk 0:02:48]} 21. Rxa1 {[%clk 0:01:23]}  Nd7 {[%clk 0:02:47]} 22. Nxd6 {[%clk 0:01:23]}  Ba6 {[%clk 0:02:47]} 23. Re1 {[%clk 0:01:20]}  Rb8 {[%clk 0:02:32]} 24. Re7 {[%clk 0:01:10]} 1-0


[Site "https://www.chess.com"]